[Event "4NCL 2021-22"]
[Site "England"]
[Date "2022.03.27"]
[Round "6.80"]
[White "Zakarian, Dimitrios Levon"]
[Black "Gazis, Georgios"]
[Result "0-1"]
[ECO "A75"]
[WhiteElo "1962"]
[BlackElo "1817"]
[Annotator "NA"]
[PlyCount "116"]
[EventDate "2021.11.27"]
[EventType "team-tourn"]
[EventCountry "ENG"]
[SourceTitle "playchess.com"]
[Source "ChessBase"]
[SourceQuality "1"]
[TimeControl "40/6000+30:3000+30"]

1. d4 {[%emt 0:02:33]} Nf6 {[%emt 0:00:06]} 2. Nf3 {[%emt 0:00:05]} e6 {[%emt 0:00:12]} 3. c4 {[%emt 0:00:07]} c5 {[%emt 0:00:07]} 4. d5 {[%emt 0:00:09]} exd5 {[%emt 0:00:06]} 5. cxd5 {[%emt 0:00:06]} d6 {[%emt 0:00:05]} 6. Nc3 {[%emt 0:00:18]} g6 {[%emt 0:00:15]} 7. Bf4 {[%emt 0:00:21]} a6 {[%emt 0:01:08]} 8. a4 {[%emt 0:06:09]} Bg7 {[%emt 0:04:00]} 9. e4 {[%emt 0:01:30]} Bg4 {[%emt 0:02:42]} 10. Be2 {[%emt 0:01:39]} Nh5 {[%emt 0:06:55]} 11. Be3 {[%emt 0:03:01]} O-O {[%emt 0:06:05]} 12. O-O {[%emt 0:03:27]} Nd7 {[%emt 0:02:34]} 13. Nd2 {[%emt 0:01:55]} Bxe2 {[%emt 0:03:12]} 14. Qxe2 {[%emt 0:00:08]} Re8 {[%emt 0:04:35]} 15. Nc4 {[%emt 0:12:32]} Ne5 {[%emt 0:05:19]} 16. Nxe5 {[%emt 0:03:16]} Bxe5 {[%emt 0:02:49]} 17. f4 {[%emt 0:02:00]} Bxc3 {[%emt 0:02:25]} 18. bxc3 {[%emt 0:02:02]} Rxe4 {[%emt 0:00:56]} 19. Qd3 {[%emt 0:00:57]} Qe7 {[%emt 0:01:48]} 20. Bd2 {[%emt 0:01:45]} Re8 {[%emt 0:06:28]} 21. f5 {[%emt 0:04:16]} Re2 {[%emt 0:07:14]} 22. fxg6 {[%emt 0:30:17]} hxg6 {[%emt 0:00:59]} 23. Rad1 {[%emt 0:00:25]} Qe4 {[%emt 0:01:55]} 24. Qh3 {[%emt 0:08:00]} Qxd5 {[%emt 0:01:05]} 25. Bh6 {[%emt 0:03:18]} Qe6 {[%emt 0:01:54]} 26. Qf3 {[%emt 0:00:17]} Re4 {[%emt 0:08:59]} 27. h3 {[%emt 0:08:09]} Ng7 {[%emt 0:06:23]} 28. Rxd6 {[%emt 0:01:33]} Qe7 {[%emt 0:03:39]} 29. Rf6 {[%emt 0:00:18]} Re1 {[%emt 0:05:10]} 30. Rxe1 {[%emt 0:05:26]} Qxe1+ 31. Kh2 {[%emt 0:00:19]} Qe5+ {[%emt 0:00:52]} 32. Kg1 {[%emt 0:01:12]} Qe1+ {[%emt 0:05:58]} 33. Kh2 {[%emt 0:00:11]} Qe5+ {[%emt 0:00:04]} 34. Kg1 {[%emt 0:00:07]} Nf5 {[%emt 0:00:58]} 35. Bg5 {[%emt 0:00:11]} Qe1+ {[%emt 0:00:36]} 36. Kh2 {[%emt 0:00:33]} Qe5+ {[%emt 0:00:10]} 37. Kg1 {[%emt 0:00:05]} Qe1+ {[%emt 0:01:34]} 38. Kh2 {[%emt 0:00:10]} Qe5+ {[%emt 0:00:04]} 39. Kg1 {[%emt 0:06:32]} Ng3 {[%emt 0:07:25]} 40. Bh6 {[%emt 0:02:26]} Qe1+ {[%emt 0:00:45]} 41. Kh2 {[%emt 0:00:10]} Ne2 {[%emt 0:08:53]} 42. Be3 {[%emt 0:01:19]} Qg3+ {[%emt 0:07:29]} 43. Qxg3 {[%emt 0:00:19]} Nxg3 {[%emt 0:00:04]} 44. Kxg3 {[%emt 0:02:51]} Rxe3+ {[%emt 0:00:25]} 45. Rf3 {[%emt 0:00:04]} Rxf3+ {[%emt 0:00:17]} 46. Kxf3 {[%emt 0:00:06]} b5 {[%emt 0:00:20]} 47. a5 {[%emt 0:00:02]} Kg7 {[%emt 0:07:23]} 48. Ke4 {[%emt 0:00:15]} Kf6 {[%emt 0:00:39]} 49. Kd5 {[%emt 0:01:26]} c4 {[%emt 0:00:44]} 50. Kc5 {[%emt 0:00:06]} Ke6 {[%emt 0:02:55]} 51. h4 {[%emt 0:00:29]} f5 {[%emt 0:00:29]} 52. g3 {[%emt 0:00:08]} Ke5 {[%emt 0:03:04]} 53. h5 {[%emt 0:00:56]} gxh5 {[%emt 0:02:27]} 54. g4 {[%emt 0:00:03]} fxg4 {[%emt 0:00:18]} 55. Kb6 {[%emt 0:00:03]} g3 {[%emt 0:01:21]} 56. Kxa6 {[%emt 0:00:07]} g2 {[%emt 0:00:08]} 57. Kb7 {[%emt 0:00:04]} g1=Q {[%emt 0:00:15]} 58. a6 {[%emt 0:00:04]} Qg8 {[%emt 0:00:47]} 0-1

[Event "4NCL 2021-22"]
[Site "England"]
[Date "2022.04.30"]
[Round "7.1"]
[White "Pert, Nicholas"]
[Black "Haria, Ravi"]
[Result "0-1"]
[ECO "D38"]
[WhiteElo "2546"]
[BlackElo "2490"]
[Annotator "TA"]
[PlyCount "82"]
[EventDate "2021.11.27"]
[EventType "team-tourn"]
[EventCountry "ENG"]
[SourceTitle "playchess.com"]
[Source "ChessBase"]
[SourceQuality "1"]
[TimeControl "40/6000+30:3000+30"]

{[%evp 12,82,22,0,27,30,33,15,17,10,18,0,15,0,60,64,94,102,120,62,78,54,94,90,91,84,139,84,110,89,93,97,118,31,114,112,93,65,146,117,312,325,350,359,342,277,269,282,247,264,277,264,400,402,397,345,640,648,852,838,906,507,513,510,498,-8,-10,-1863,0,-25,0,-257,-37]} 1. d4 {[%emt 0:00:07]} e6 {[%emt 0:00:13]} 2. c4 {[%emt 0:00:13]} Nf6 {[%emt 0:00:10]} 3. Nf3 {[%emt 0:00:10]} d5 {[%emt 0:00:06]} 4. Nc3 {[%emt 0:00:10]} Bb4 {[%emt 0:00:06]} 5. Qa4+ {[%emt 0:01:07]} Nc6 {[%emt 0:00:08]} 6. e3 {[%emt 0:00:07]} O-O {[%emt 0:00:51]} 7. Bd2 {[%emt 0:00:23]} Re8 {[%emt 0:03:33] D38: Queen's Gambit Declined: Ragozin Defence (4 Nf3 Bb4).} 8. a3 {[%emt 0:01:41]} Bf8 {[%emt 0:02:37]} 9. Be2 {[%emt 0:07:31]} h6 {[%emt 0:05:13] The position is equal.} 10. Rd1 {[%emt 0:06:30] [#]} dxc4 $146 {[%emt 0:23:14]} ({Predecessor:} 10... a6 11. Bc1 Bd7 12. Qc2 dxc4 13. Bxc4 b5 14. Be2 e5 15. d5 Na5 16. b4 Nb7 {½-½ (42) Enchev,I (2482)-Spitzl,V (2307) Heusenstamm 2019}) 11. e4 {[%emt 0:05:50]} Bd7 {[%emt 0:17:01][%cal Oc6b4]} (11... Nxd4 $2 12. Nxd4 a6 13. Be3 $18) 12. Qxc4 {[%emt 0:01:53]} e5 {[%emt 0:03:54] Against Bf4} (12... b5 $1 $11 13. Qb3 b4 14. axb4 Nxb4) 13. Nxe5 {[%emt 0:07:32]} Nxe5 {[%emt 0:06:21]} 14. dxe5 {[%emt 0:00:05]} Be6 {[%emt 0:14:52]} 15. Qb5 {[%emt 0:05:16]} (15. Qa4 $16 Nd7 16. Be3) 15... Nd7 $14 {[%emt 0:01:54]} 16. Be3 {[%emt 0:08:06]} (16. Qxb7 Rb8 17. Qxa7 Bc5 $11) 16... Qc8 {[%emt 0:09:28]} 17. f4 $1 {[%emt 0:02:04] f5 is the strong threat.} c6 {[%emt 0:00:26]} 18. Qd3 {[%emt 0:05:47]} Qc7 {[%emt 0:00:39]} (18... Nc5 $142 19. Bxc5 Bxc5) 19. Bf2 {[%emt 0:16:49]} (19. Qd2 $142) 19... Nc5 {[%emt 0:05:20]} 20. Qg3 {[%emt 0:04:13]} Bb3 {[%emt 0:01:43]} 21. Rc1 {[%emt 0:02:08]} Rad8 {[%emt 0:00:49]} 22. Qe3 {[%emt 0:15:50]} (22. Nb1 $16 Ba2 23. Bxc5 Bxc5 24. Rxc5 Bxb1 25. Qe3) 22... Rd7 {[%emt 0:03:37]} (22... Ne6 $1 $14) 23. O-O $36 {[%emt 0:00:34][%mdl 2048] White is really pushing.} Red8 {[%emt 0:01:47]} 24. Bh4 {[%emt 0:01:36]} Re8 {[%emt 0:02:57]} ({Better is} 24... Rd2 $14) 25. Kh1 {[%emt 0:00:23]} a5 $2 {[%emt 0:01:04]} (25... Qb6 $16) 26. Nb1 $1 $18 {[%emt 0:01:54]} Qb6 {[%emt 0:03:14]} 27. Bf2 {[%emt 0:01:59]} Ba2 {[%emt 0:01:02]} 28. Bg4 {[%emt 0:09:34]} (28. Rxc5 Bxc5 29. Qxc5 Qxb2 $18) 28... Rdd8 {[%emt 0:01:10]} 29. Rxc5 {[%emt 0:02:56]} Bxc5 {[%emt 0:00:03]} 30. Qxc5 {[%emt 0:00:02]} Qxb2 {[%emt 0:00:17]} 31. Nc3 {[%emt 0:00:23]} (31. Qxa5 Bxb1 32. Qb6 Qxb6 33. Bxb6 Bxe4 34. Bxd8 Rxd8 $15) 31... Be6 {[%emt 0:01:32]} (31... Rd2 $142 32. Nxa2 Rc2) 32. f5 {[%emt 0:01:57]} b6 {[%emt 0:00:27]} 33. Qxc6 {[%emt 0:01:10]} Bd7 {[%emt 0:00:06]} (33... Rc8 34. Qxb6 Qxb6 35. Bxb6 Bc4) 34. Qc7 {[%emt 0:00:16] Hoping for e6.} Qd2 {[%emt 0:00:53]} 35. Nd5 {[%emt 0:01:08]} Bb5 {[%emt 0:00:18]} 36. Be3 {[%emt 0:00:10]} Qd3 {[%emt 0:00:46]} 37. Re1 {[%emt 0:00:48] Black must now prevent e6.} Qxe4 {[%emt 0:00:18] [#]} 38. Bf3 {[%emt 0:00:05]} (38. e6 $1 $18 {[%cal Od5f6] Strongly threatening Nf6+!} fxe6 39. Bf3) 38... Qxe5 $11 {[%emt 0:00:40] Dancing on a razor blade.} 39. Nc3 {[%emt 0:03:10][%mdl 8192]} Bd7 $2 (39... Qxc7 $19 40. Ne4 Rd3) 40. Nd5 {[%emt 0:04:51]} Bb5 41. Qxb6 $2 {[%emt 0:00:39][%mdl 8192] [#]} (41. Nc3 $11) 41... Rxd5 $2 {[%emt 0:00:04] Quite a comeback for Black.  Weighted Error Value: White=0.70/Black=0.55} ({Black should try} 41... Bc4 $1 $19 {[%cal Rc4d5]} 42. Ne7+ (42. Nc7 $2 Rb8 $19) 42... Qxe7 43. Qxa5 Qd6) 0-1

[Event "4NCL 2021-22"]
[Site "England"]
[Date "2022.04.30"]
[Round "7.2"]
[White "Tan, Justin"]
[Black "Kirk, Ezra"]
[Result "0-1"]
[ECO "C71"]
[WhiteElo "2526"]
[BlackElo "2438"]
[Annotator "TA"]
[PlyCount "60"]
[EventDate "2021.11.27"]
[EventType "team-tourn"]
[EventCountry "ENG"]
[SourceTitle "playchess.com"]
[Source "ChessBase"]
[SourceQuality "1"]
[TimeControl "40/6000+30:3000+30"]

{[%evp 18,60,21,18,30,27,16,0,0,-47,-37,-38,33,49,28,0,0,0,50,-43,-50,-44,-8,-10,0,0,0,0,0,0,0,0,0,0,0,-75,-67,-60,-64,-899,-902,-1061,-1025,-979,-889]} 1. e4 {[%emt 0:05:07]} e5 {[%emt 0:00:23]} 2. Nf3 {[%emt 0:00:23]} Nc6 {[%emt 0:00:06]} 3. Bb5 {[%emt 0:00:40]} a6 {[%emt 0:00:28]} 4. Ba4 {[%emt 0:00:45]} d6 {[%emt 0:00:10]} 5. O-O {[%emt 0:02:55]} Bd7 {[%emt 0:00:07]} 6. c4 {[%emt 0:07:02]} g6 {[%emt 0:04:19]} 7. d4 {[%emt 0:01:51]} Bg7 {[%emt 0:01:20]} 8. Be3 {[%emt 0:14:35]} exd4 {[%emt 0:01:24]} 9. Nxd4 {[%emt 0:00:25]} Nge7 {[%emt 0:01:07]} 10. Nc3 {[%emt 0:00:33]} Ne5 {[%emt 0:00:20] C71: Ruy Lopez: Deferred Steinitz Variation, sidelines.} 11. Bb3 {[%emt 0:04:26]} O-O {[%emt 0:04:46] [#]} 12. h3 $146 {[%emt 0:18:37]} ({Predecessor:} 12. f4 Ng4 13. Bc1 Nc6 14. Nxc6 bxc6 15. h3 Nh6 16. f5 gxf5 17. Bxh6 Bxh6 18. exf5 {0-1 (48) Aguilar,P (1930)-Nunez Cerda,A (1792) Antofagasta 2015}) 12... c5 {[%emt 0:14:05] The position is equal.} 13. Nde2 {[%emt 0:02:58]} (13. Nc2 $11) 13... Be6 $1 $15 {[%emt 0:03:48]} 14. Nd5 {[%emt 0:03:06]} Bxd5 {[%emt 0:03:12]} ({Black should play} 14... b5 $15) 15. cxd5 $14 {[%emt 0:00:23]} b5 {[%emt 0:01:07]} 16. Qd2 {[%emt 0:02:00]} f5 {[%emt 0:23:15]} 17. f3 {[%emt 0:07:21]} a5 {[%emt 0:15:27]} (17... c4 $11) 18. Bh6 {[%emt 0:09:13]} (18. Nf4 $14) 18... Bxh6 $15 {[%emt 0:03:30]} 19. Qxh6 {[%emt 0:00:01]} c4 {[%emt 0:00:42]} 20. Bc2 {[%emt 0:00:07]} Qb6+ {[%emt 0:01:36]} 21. Kh1 {[%emt 0:02:20]} fxe4 {[%emt 0:01:30]} 22. Bxe4 {[%emt 0:01:11]} Nf5 {[%emt 0:01:09]} 23. Bxf5 {[%emt 0:00:09]} Rxf5 {[%emt 0:00:14]} 24. Ng3 {[%emt 0:00:20]} Rff8 {[%emt 0:10:19]} 25. Ne4 {[%emt 0:00:58]} Nd3 {[%emt 0:04:31]} 26. Ng5 {[%emt 0:01:51]} (26. b3 $11 {keeps the balance.}) 26... Qb7 {[%emt 0:03:06] Active counter play!} 27. f4 {[%emt 0:05:30][%cal Of4f5]} (27. Ne6 Rf5 28. Rab1 Rc8 $17) 27... Rf5 {[%emt 0:03:13] And now ...Raf8 would win.} ({Reject} 27... Nxb2 28. f5 gxf5 29. Ne6 $16) ({Don't play} 27... Rxf4 28. Rxf4 Nxf4 {[#]} 29. Nxh7 $1 Qxh7 30. Qxf4 $16) 28. Ne6 {[%emt 0:01:30][%mdl 8192] [#] Prevents Raf8.} (28. Rf3 $15) 28... Rh5 $19 {[%emt 0:01:21] Black is clearly winning.} 29. Qg5 {[%emt 0:00:36]} Rxg5 {[%emt 0:00:15]} 30. fxg5 {[%emt 0:00:02]} Qxd5 {[%emt 0:01:38] Weighted Error Value: White=0.70/Black=0.11 (very precise)} 0-1

[Event "4NCL 2021-22"]
[Site "England"]
[Date "2022.04.30"]
[Round "7.3"]
[White "Pert, Richard G"]
[Black "Speelman, Jon S"]
[Result "1/2-1/2"]
[ECO "B12"]
[WhiteElo "2415"]
[BlackElo "2504"]
[Annotator "TA"]
[PlyCount "55"]
[EventDate "2021.11.27"]
[EventType "team-tourn"]
[EventCountry "ENG"]
[SourceTitle "playchess.com"]
[Source "ChessBase"]
[SourceQuality "1"]
[TimeControl "40/6000+30:3000+30"]

{[%evp 10,55,18,15,28,24,31,29,31,30,24,28,23,31,25,18,26,21,33,30,32,42,31,41,41,19,19,12,12,12,8,25,5,6,19,12,18,0,96,97,102,93,223,131,129,137,123,-14]} 1. e4 {[%emt 0:00:10]} c6 {[%emt 0:00:18]} 2. d4 {[%emt 0:00:11]} d5 {[%emt 0:00:06]} 3. e5 {[%emt 0:00:16]} Bf5 {[%emt 0:00:08]} 4. Nd2 {[%emt 0:00:20]} e6 {[%emt 0:00:29]} 5. Nb3 {[%emt 0:00:11]} Nd7 {[%emt 0:01:03]} 6. Nf3 {[%emt 0:00:29]} Ne7 {[%emt 0:00:06] B12: Caro-Kann: Advance Variation.} 7. Be2 {[%emt 0:00:25]} Nc8 {[%emt 0:00:22][%cal Be7c8,Bc8a7,Ba7b5][%mdl 32]} 8. O-O {[%emt 0:00:49]} Be7 {[%emt 0:02:59] White has an edge.} 9. a4 {[%emt 0:05:19]} O-O {[%emt 0:08:24]} 10. a5 {[%emt 0:01:03]} a6 {[%emt 0:00:54]} 11. Be3 $1 {[%emt 0:07:42] 11.Be3 is better than 11.c4.} Na7 {[%emt 0:04:39]} 12. c3 {[%emt 0:17:14] [#]} Nb5 $146 {[%emt 0:02:58]} ({Predecessor:} 12... Qc7 13. Rc1 c5 14. Nxc5 Nxc5 15. dxc5 Bxc5 16. Bxc5 Qxc5 17. Nd4 Bg6 18. Qb3 Rab8 {½-½ (35) Vetoshko,V (2525)-Ponomariov,R (2633) Castelldefels 2021}) 13. h3 {[%emt 0:05:30]} Bg6 {[%emt 0:02:41]} 14. Qd2 {[%emt 0:14:32]} Qc7 {[%emt 0:06:35]} 15. Bg5 {[%emt 0:05:10]} Bxg5 {[%emt 0:00:49]} 16. Qxg5 {[%emt 0:00:47]} c5 {[%emt 0:02:25]} 17. dxc5 {[%emt 0:06:46]} Nxc5 {[%emt 0:02:51]} 18. Nxc5 {[%emt 0:00:07]} Qxc5 {[%emt 0:00:05]} 19. Qd2 {[%emt 0:02:04]} Qc7 {[%emt 0:07:07]} 20. Qe3 {[%emt 0:02:20]} Na7 {[%emt 0:03:49]} 21. Nd4 {[%emt 0:00:38][%cal Oc3c4]} Nc6 {[%emt 0:00:37]} 22. Nxc6 {[%emt 0:00:47]} bxc6 {[%emt 0:00:49]} 23. b4 {[%emt 0:01:37]} c5 {[%emt 0:02:36]} (23... Rfb8 $11) 24. bxc5 $16 {[%emt 0:01:08] White is more active.} Rfc8 {[%emt 0:03:03] [#]} 25. c4 $1 {[%emt 0:00:55]} dxc4 {[%emt 0:00:04] [#]} (25... Qxc5 $16 {was necessary.} 26. Qxc5 Rxc5) 26. Rfc1 {[%emt 0:00:37]} (26. Rfd1 $1 $18) 26... Qxc5 {[%emt 0:00:06] White must now prevent ...c3.} 27. Rxc4 {[%emt 0:00:37]} Qxe3 {[%emt 0:00:07]} 28. Rxc8+ {[%emt 0:07:02] Weighted Error Value: White=0.07 (flawless) /Black=0.21 (precise)} 1/2-1/2

[Event "4NCL 2021-22"]
[Site "England"]
[Date "2022.04.30"]
[Round "7.4"]
[White "Toma, Katarzyna"]
[Black "Arkell, Keith C"]
[Result "0-1"]
[ECO "B11"]
[WhiteElo "2420"]
[BlackElo "2380"]
[Annotator "TA"]
[PlyCount "80"]
[EventDate "2021.11.27"]
[EventType "team-tourn"]
[EventCountry "ENG"]
[SourceTitle "playchess.com"]
[Source "ChessBase"]
[SourceQuality "1"]
[TimeControl "40/6000+30:3000+30"]

{[%evp 10,80,35,35,41,36,29,29,34,36,39,28,41,20,20,20,24,12,11,14,17,0,11,9,16,6,10,0,5,0,0,-10,0,0,0,0,-2,-8,0,0,0,-36,-8,-20,-6,-8,-13,-17,-22,-13,-16,-17,-24,-32,-8,-27,-27,-27,-27,-31,-10,-10,-14,-16,-15,-516,-516,-516,-516,-516,-516,-502,-494]} 1. e4 {[%emt 0:00:03]} c6 {[%emt 0:00:07]} 2. Nc3 {[%emt 0:00:17]} d5 {[%emt 0:00:05]} 3. Nf3 {[%emt 0:00:09]} Bg4 {[%emt 0:00:06]} 4. h3 {[%emt 0:00:21]} Bxf3 {[%emt 0:00:05]} 5. Qxf3 {[%emt 0:00:06]} dxe4 {[%emt 0:00:25]} 6. Nxe4 {[%emt 0:01:32]} Nd7 {[%emt 0:00:04] B11: Caro-Kann: Two Knights Variation.} 7. d4 {[%emt 0:01:30]} Ndf6 {[%emt 0:00:06] is the new trend.} 8. c3 {[%emt 0:02:16]} Nxe4 {[%emt 0:00:05] White has an edge.} 9. Qxe4 {[%emt 0:00:06]} Nf6 {[%emt 0:00:03]} 10. Qd3 {[%emt 0:00:42]} e6 {[%emt 0:00:50]} 11. Be2 {[%emt 0:00:35]} Be7 {[%emt 0:00:10]} 12. O-O {[%emt 0:01:25]} O-O {[%emt 0:00:05]} 13. Bf4 {[%emt 0:04:45] [#]} Nd5 $146 {[%emt 0:02:46]} ({Predecessor:} 13... Bd6 14. Bg5 h6 15. Bh4 Be7 16. f4 Nd5 17. Bg3 Bd6 18. c4 Nf6 19. Bh4 Be7 {1-0 (29) Gordon,F (1739)-Davis,L (1972) Terme Catez 2021}) 14. Bg3 {[%emt 0:03:21]} Bd6 {[%emt 0:00:12]} 15. Rfe1 {[%emt 0:09:27]} Bxg3 {[%emt 0:05:26]} 16. Qxg3 {[%emt 0:00:08]} Qf6 {[%emt 0:00:59]} 17. Rad1 {[%emt 0:04:15]} Rfd8 {[%emt 0:00:26]} 18. Bf1 {[%emt 0:03:54]} Rd7 {[%emt 0:00:35]} 19. Re4 {[%emt 0:02:25]} Rad8 {[%emt 0:01:44]} 20. Rd3 {[%emt 0:11:54]} Qh6 {[%emt 0:07:55]} 21. Rd1 {[%emt 0:01:47]} g6 {[%emt 0:08:03]} 22. Qf3 {[%emt 0:05:08]} Qg7 {[%emt 0:04:07]} 23. Rde1 {[%emt 0:03:49]} Qf6 {[%emt 0:01:59]} 24. Qg3 {[%emt 0:02:02]} b5 {[%emt 0:00:44]} 25. Qd3 {[%emt 0:08:06]} a6 {[%emt 0:01:34]} 26. a4 {[%emt 0:06:42]} Qe7 {[%emt 0:03:35]} 27. Ra1 {[%emt 0:09:31]} Nf6 {[%emt 0:01:01]} 28. Re5 {[%emt 0:00:42]} c5 {[%emt 0:10:29] Against b4} 29. axb5 {[%emt 0:03:18]} axb5 {[%emt 0:00:33]} 30. Qf3 {[%emt 0:08:35]} cxd4 {[%emt 0:01:56]} 31. Bxb5 {[%emt 0:00:08]} Rd5 {[%emt 0:07:09]} 32. cxd4 {[%emt 0:03:26]} Rxd4 {[%emt 0:00:13]} 33. b3 {[%emt 0:02:02]} Kg7 {[%emt 0:02:54]} 34. Bc4 {[%emt 0:00:40]} Nd7 {[%emt 0:03:22][%cal Bf6d7,Bd7e5,Be5f3][%mdl 32]} 35. Re4 {[%emt 0:02:47]} Qd6 {[%emt 0:14:11]} 36. Rxd4 {[%emt 0:00:25]} Qxd4 {[%emt 0:00:07]} 37. Rd1 {[%emt 0:00:10][%mdl 8192] [#] Loses the game.} (37. Re1 $11 {and White has nothing to worry.}) 37... Ne5 $1 $19 {[%emt 0:00:19][%csl LRc4,LRd1,LRf3] Black is clearly winning.} 38. Rxd4 {[%emt 0:05:31] White wants to mate with Qf4.} Nxf3+ {[%emt 0:00:08]} 39. gxf3 {[%emt 0:00:03]} Rxd4 {[%emt 0:00:05]} 40. Kf1 {[%emt 0:00:41]} Kf6 {[%emt 0:00:05] Weighted Error Value: White=0.30/Black=0.04 (flawless)} 0-1

[Event "4NCL 2021-22"]
[Site "England"]
[Date "2022.04.30"]
[Round "7.5"]
[White "Astaneh Lopez, Alex"]
[Black "Harvey, Marcus R"]
[Result "1/2-1/2"]
[ECO "E12"]
[WhiteElo "2430"]
[BlackElo "2464"]
[Annotator "TA"]
[PlyCount "33"]
[EventDate "2021.11.27"]
[EventType "team-tourn"]
[EventCountry "ENG"]
[SourceTitle "playchess.com"]
[Source "ChessBase"]
[SourceQuality "1"]
[TimeControl "40/6000+30:3000+30"]

{[%evp 19,33,-2,7,0,8,-4,12,0,36,33,39,16,37,27,43,7]} 1. d4 {[%emt 0:07:01]} Nf6 {[%emt 0:00:21]} 2. Nf3 {[%emt 0:00:23]} e6 {[%emt 0:00:45]} 3. c4 {[%emt 0:00:51]} b6 {[%emt 0:00:19]} 4. Nc3 {[%emt 0:01:45]} Bb7 {[%emt 0:00:06]} 5. a3 {[%emt 0:03:27]} d5 {[%emt 0:03:01]} 6. Bg5 {[%emt 0:01:41]} Be7 {[%emt 0:05:30]} 7. Bxf6 {[%emt 0:01:22]} Bxf6 {[%emt 0:00:02]} 8. cxd5 {[%emt 0:00:08]} exd5 {[%emt 0:00:16]} 9. g3 {[%emt 0:02:37]} O-O {[%emt 0:02:21]} 10. Bg2 {[%emt 0:05:22]} Re8 {[%emt 0:08:40]} 11. O-O {[%emt 0:00:32] E12: Queen's Indian: Unusual White 4th moves, 4 a3, 4 Nc3 Bb7 5 a3 and 4 Nc3 Bb7 .} c5 {[%emt 0:16:53]} 12. e3 {[%emt 0:03:13]} Na6 {[%emt 0:10:06]} 13. Qa4 {[%emt 0:09:36] [#] The position is equal.} Rc8 $146 {[%emt 0:08:09]} ({Predecessor:} 13... Nc7 14. Rac1 Qe7 15. Rfd1 Red8 16. dxc5 bxc5 17. Ne1 h6 18. Qa5 Rab8 19. Qxa7 d4 20. exd4 Bxg2 21. Nxg2 Bxd4 {½-½ (36) Brisson,P (2090)-Gilbert,C (2329) ICCF email 2013}) 14. Rfd1 {[%emt 0:06:33]} cxd4 {[%emt 0:01:54]} 15. exd4 {[%emt 0:13:32][%cal Of3e5]} Re7 {[%emt 0:09:49] Inhibits Ne5.} 16. Re1 {[%emt 0:05:55]} Qe8 {[%emt 0:03:52]} 17. Qb3 {[%emt 0:13:40] Weighted Error Value: White=0.07 (flawless) /Black=0.08 (flawless)} 1/2-1/2